[Event "Titled Tuesday Blitz February 22 Late 2022"]
[White "Karttunen, Mika"]
[Black "Ansh M Shah"]
[WhiteFideId "502081"]
[BlackFideId "25033379"]
[WhiteElo "2343"]
[BlackElo "1819"]
[Result "1/2-1/2"]
[Round "10"]
[TimeControl "180+1"]
[Date "2022.02.23"]
[WhiteClock "0:00:09"]
[BlackClock "0:00:19"]

1. d4 {[%clk 0:03:00]}  Nf6 {[%clk 0:03:00]} 2. Bf4 {[%clk 0:02:58]}  e6 {[%clk 0:02:57]} 3. e3 {[%clk 0:02:57]}  d5 {[%clk 0:02:58]} 4. c3 {[%clk 0:02:57]}  Be7 {[%clk 0:02:58]} 5. Nf3 {[%clk 0:02:57]}  O-O {[%clk 0:02:58]} 6. Nbd2 {[%clk 0:02:57]}  Nbd7 {[%clk 0:02:59]} 7. Bd3 {[%clk 0:02:57]}  b6 {[%clk 0:03:00]} 8. O-O {[%clk 0:02:56]}  Bb7 {[%clk 0:03:00]} 9. Ne5 {[%clk 0:02:56]}  c5 {[%clk 0:03:00]} 10. Qf3 {[%clk 0:02:54]}  Re8 {[%clk 0:02:53]} 11. Qh3 {[%clk 0:02:52]}  Nf8 {[%clk 0:02:53]} 12. Ndf3 {[%clk 0:02:47]}  Ne4 {[%clk 0:02:48]} 13. Bb5 {[%clk 0:02:27]}  f6 {[%clk 0:02:22]} 14. Nd3 {[%clk 0:01:33]}  e5 {[%clk 0:01:51]} 15. dxe5 {[%clk 0:00:38]}  Bc8 {[%clk 0:01:20]} 16. Qh5 {[%clk 0:00:38]}  Bd7 {[%clk 0:01:09]} 17. Bxd7 {[%clk 0:00:35]}  Qxd7 {[%clk 0:01:05]} 18. exf6 {[%clk 0:00:33]}  Nxf6 {[%clk 0:01:00]} 19. Qh3 {[%clk 0:00:22]}  Qxh3 {[%clk 0:01:00]} 20. gxh3 {[%clk 0:00:22]}  Ne4 {[%clk 0:00:56]} 21. Rad1 {[%clk 0:00:20]}  Ne6 {[%clk 0:00:52]} 22. Bg3 {[%clk 0:00:20]}  Rad8 {[%clk 0:00:47]} 23. Kg2 {[%clk 0:00:20]}  a5 {[%clk 0:00:41]} 24. Nde5 {[%clk 0:00:19]}  Bf6 {[%clk 0:00:37]} 25. Nd2 {[%clk 0:00:14]}  Nxg3 {[%clk 0:00:35]} 26. hxg3 {[%clk 0:00:10]}  Bxe5 {[%clk 0:00:35]} 27. f4 {[%clk 0:00:10]}  Bf6 {[%clk 0:00:35]} 28. g4 {[%clk 0:00:11]}  h6 {[%clk 0:00:35]} 29. Rfe1 {[%clk 0:00:11]}  g5 {[%clk 0:00:32]} 30. f5 {[%clk 0:00:10]}  Nc7 {[%clk 0:00:32]} 31. e4 {[%clk 0:00:09]}  dxe4 {[%clk 0:00:32]} 32. Nxe4 {[%clk 0:00:10]}  Kf7 {[%clk 0:00:31]} 33. Nxf6 {[%clk 0:00:08]}  Kxf6 {[%clk 0:00:32]} 34. Kf3 {[%clk 0:00:07]}  Rxd1 {[%clk 0:00:29]} 35. Rxd1 {[%clk 0:00:08]}  Ke7 {[%clk 0:00:15]} 36. h4 {[%clk 0:00:08]}  gxh4 {[%clk 0:00:15]} 37. Rh1 {[%clk 0:00:09]}  h5 {[%clk 0:00:14]} 38. Rxh4 {[%clk 0:00:10]}  hxg4+ {[%clk 0:00:14]} 39. Kxg4 {[%clk 0:00:10]}  Rg8+ {[%clk 0:00:14]} 40. Kf4 {[%clk 0:00:11]}  Rg2 {[%clk 0:00:14]} 41. Rh7+ {[%clk 0:00:11]}  Kd6 {[%clk 0:00:15]} 42. Rh6+ {[%clk 0:00:11]}  Kd7 {[%clk 0:00:15]} 43. Rh7+ {[%clk 0:00:12]}  Kc6 {[%clk 0:00:16]} 44. Rh6+ {[%clk 0:00:12]}  Kd5 {[%clk 0:00:17]} 45. Rxb6 {[%clk 0:00:11]}  Rf2+ {[%clk 0:00:15]} 46. Kg5 {[%clk 0:00:11]}  Ne8 {[%clk 0:00:15]} 47. Rb8 {[%clk 0:00:10]}  Nd6 {[%clk 0:00:16]} 48. f6 {[%clk 0:00:10]}  Ne4+ {[%clk 0:00:16]} 49. Kg6 {[%clk 0:00:11]}  Rxf6+ {[%clk 0:00:16]} 50. Kg7 {[%clk 0:00:11]}  Rf2 {[%clk 0:00:17]} 51. Rb5 {[%clk 0:00:11]}  a4 {[%clk 0:00:16]} 52. b3 {[%clk 0:00:09]}  axb3 {[%clk 0:00:17]} 53. axb3 {[%clk 0:00:09]}  Nxc3 {[%clk 0:00:18]} 54. b4 {[%clk 0:00:09]}  Ne4 {[%clk 0:00:16]} 55. bxc5 {[%clk 0:00:09]}  Nxc5 {[%clk 0:00:17]} 56. Rb6 {[%clk 0:00:09]}  Ne4 {[%clk 0:00:17]} 57. Rg6 {[%clk 0:00:08]}  Ke5 {[%clk 0:00:17]} 58. Ra6 {[%clk 0:00:06]}  Rg2+ {[%clk 0:00:17]} 59. Rg6 {[%clk 0:00:06]}  Ra2 {[%clk 0:00:16]} 60. Rb6 {[%clk 0:00:06]}  Ra7+ {[%clk 0:00:16]} 61. Kg6 {[%clk 0:00:06]}  Nd6 {[%clk 0:00:16]} 62. Rc6 {[%clk 0:00:06]}  Kd5 {[%clk 0:00:14]} 63. Rb6 {[%clk 0:00:06]}  Kc5 {[%clk 0:00:14]} 64. Rb1 {[%clk 0:00:06]}  Ra6 {[%clk 0:00:13]} 65. Rd1 {[%clk 0:00:06]}  Ne4+ {[%clk 0:00:13]} 66. Kf5 {[%clk 0:00:06]}  Ng3+ {[%clk 0:00:13]} 67. Kg5 {[%clk 0:00:06]}  Ra5 {[%clk 0:00:12]} 68. Kg4 {[%clk 0:00:05]}  Ne4 {[%clk 0:00:12]} 69. Kf4 {[%clk 0:00:05]}  Nc3 {[%clk 0:00:12]} 70. Rc1 {[%clk 0:00:04]}  Kd4 {[%clk 0:00:12]} 71. Rh1 {[%clk 0:00:03]}  Ra2 {[%clk 0:00:13]} 72. Rh4 {[%clk 0:00:02]}  Ne2+ {[%clk 0:00:12]} 73. Kf5+ {[%clk 0:00:03]}  Ke3 {[%clk 0:00:12]} 74. Rb4 {[%clk 0:00:03]}  Ra5+ {[%clk 0:00:12]} 75. Kg4 {[%clk 0:00:03]}  Nd4 {[%clk 0:00:12]} 76. Rc4 {[%clk 0:00:02]}  Re5 {[%clk 0:00:12]} 77. Rb4 {[%clk 0:00:03]}  Ke4 {[%clk 0:00:12]} 78. Kg3 {[%clk 0:00:03]}  Re8 {[%clk 0:00:13]} 79. Ra4 {[%clk 0:00:03]}  Rg8+ {[%clk 0:00:13]} 80. Kf2 {[%clk 0:00:03]}  Kd3 {[%clk 0:00:13]} 81. Ra8 {[%clk 0:00:02]}  Rf8+ {[%clk 0:00:13]} 82. Rxf8 {[%clk 0:00:02]}  Nc2 {[%clk 0:00:12]} 83. Rf4 {[%clk 0:00:02]}  Nd4 {[%clk 0:00:13]} 84. Rh4 {[%clk 0:00:02]}  Kc4 {[%clk 0:00:14]} 85. Rh3 {[%clk 0:00:03]}  Kd5 {[%clk 0:00:14]} 86. Rh4 {[%clk 0:00:03]}  Nf5 {[%clk 0:00:14]} 87. Rg4 {[%clk 0:00:03]}  Ke5 {[%clk 0:00:14]} 88. Rg5 {[%clk 0:00:04]}  Kf4 {[%clk 0:00:14]} 89. Rg8 {[%clk 0:00:04]}  Ke5 {[%clk 0:00:15]} 90. Rf8 {[%clk 0:00:05]}  Nd6 {[%clk 0:00:15]} 91. Ke3 {[%clk 0:00:05]}  Nc4+ {[%clk 0:00:15]} 92. Kd3 {[%clk 0:00:05]}  Nd6 {[%clk 0:00:16]} 93. Rh8 {[%clk 0:00:05]}  Nf7 {[%clk 0:00:14]} 94. Rh5+ {[%clk 0:00:05]}  Kf4 {[%clk 0:00:14]} 95. Rh7 {[%clk 0:00:06]}  Ng5 {[%clk 0:00:14]} 96. Ra7 {[%clk 0:00:05]}  Kf5 {[%clk 0:00:13]} 97. Kd4 {[%clk 0:00:05]}  Ne6+ {[%clk 0:00:13]} 98. Kd5 {[%clk 0:00:06]}  Nf4+ {[%clk 0:00:14]} 99. Kd6 {[%clk 0:00:06]}  Ke4 {[%clk 0:00:15]} 100. Ra4+ {[%clk 0:00:06]}  Ke3 {[%clk 0:00:15]} 101. Rb4 {[%clk 0:00:07]}  Nd3 {[%clk 0:00:15]} 102. Rb3 {[%clk 0:00:07]}  Kd4 {[%clk 0:00:15]} 103. Ra3 {[%clk 0:00:07]}  Kc4 {[%clk 0:00:15]} 104. Ra4+ {[%clk 0:00:08]}  Kc3 {[%clk 0:00:15]} 105. Rh4 {[%clk 0:00:06]}  Kd2 {[%clk 0:00:15]} 106. Kd5 {[%clk 0:00:06]}  Ke3 {[%clk 0:00:14]} 107. Rh3+ {[%clk 0:00:06]}  Ke2 {[%clk 0:00:15]} 108. Kc4 {[%clk 0:00:06]}  Nf2 {[%clk 0:00:16]} 109. Rh2 {[%clk 0:00:06]}  Kf3 {[%clk 0:00:16]} 110. Kd4 {[%clk 0:00:07]}  Ng4 {[%clk 0:00:17]} 111. Rh7 {[%clk 0:00:07]}  Kf4 {[%clk 0:00:17]} 112. Rf7+ {[%clk 0:00:07]}  Kg5 {[%clk 0:00:18]} 113. Ke4 {[%clk 0:00:08]}  Nf6+ {[%clk 0:00:18]} 114. Ke5 {[%clk 0:00:08]}  Ng4+ {[%clk 0:00:19]} 115. Ke4 {[%clk 0:00:08]}  Nf6+ {[%clk 0:00:19]} 116. Kf3 {[%clk 0:00:09]}  Kf5 {[%clk 0:00:19]} 117. Rf8 {[%clk 0:00:09]}  Ke6 {[%clk 0:00:19]} 1/2-1/2


[Site "https://www.chess.com"]

[Event "Titled Tuesday Blitz February 22 Late 2022"]
[White "Kim, Sergey"]
[Black "Villegas, Pierre"]
[WhiteFideId "13700570"]
[BlackFideId "654183"]
[WhiteElo "2614"]
[BlackElo "2410"]
[Result "1-0"]
[Round "10"]
[TimeControl "180+1"]
[Date "2022.02.23"]
[WhiteClock "0:00:40"]
[BlackClock "0:00:07"]

1. d4 {[%clk 0:02:59]}  d5 {[%clk 0:02:59]} 2. c4 {[%clk 0:02:59]}  e6 {[%clk 0:02:59]} 3. Nc3 {[%clk 0:02:59]}  a6 {[%clk 0:03:00]} 4. cxd5 {[%clk 0:02:57]}  exd5 {[%clk 0:03:01]} 5. Nf3 {[%clk 0:02:57]}  Nf6 {[%clk 0:03:00]} 6. Bg5 {[%clk 0:02:57]}  Be6 {[%clk 0:03:00]} 7. e3 {[%clk 0:02:57]}  Nbd7 {[%clk 0:02:59]} 8. Bd3 {[%clk 0:02:57]}  Bd6 {[%clk 0:02:59]} 9. Rc1 {[%clk 0:02:57]}  c6 {[%clk 0:02:59]} 10. Bb1 {[%clk 0:02:57]}  Qb8 {[%clk 0:02:52]} 11. Qc2 {[%clk 0:02:54]}  Bg4 {[%clk 0:02:48]} 12. Ne2 {[%clk 0:02:46]}  Bb4+ {[%clk 0:02:36]} 13. Kf1 {[%clk 0:02:45]}  Bh5 {[%clk 0:02:32]} 14. Nf4 {[%clk 0:02:41]}  Bg6 {[%clk 0:02:29]} 15. Nxg6 {[%clk 0:02:40]}  hxg6 {[%clk 0:02:30]} 16. h3 {[%clk 0:02:31]}  O-O {[%clk 0:02:21]} 17. Qb3 {[%clk 0:02:11]}  Bd6 {[%clk 0:02:19]} 18. Qc3 {[%clk 0:02:09]}  a5 {[%clk 0:02:00]} 19. a3 {[%clk 0:02:04]}  a4 {[%clk 0:01:54]} 20. Bd3 {[%clk 0:01:59]}  Re8 {[%clk 0:01:36]} 21. Qc2 {[%clk 0:01:57]}  Qa7 {[%clk 0:01:22]} 22. g3 {[%clk 0:01:41]}  Ne4 {[%clk 0:01:16]} 23. Bf4 {[%clk 0:01:39]}  Ndf6 {[%clk 0:00:54]} 24. Bxd6 {[%clk 0:01:29]}  Nxd6 {[%clk 0:00:53]} 25. Ne5 {[%clk 0:01:29]}  Qa5 {[%clk 0:00:48]} 26. Kg2 {[%clk 0:01:27]}  Qc7 {[%clk 0:00:41]} 27. h4 {[%clk 0:01:17]}  Qe7 {[%clk 0:00:40]} 28. Rce1 {[%clk 0:01:10]}  Nd7 {[%clk 0:00:38]} 29. Nf3 {[%clk 0:01:06]}  Ne4 {[%clk 0:00:35]} 30. h5 {[%clk 0:01:03]}  gxh5 {[%clk 0:00:23]} 31. Rxh5 {[%clk 0:01:02]}  g6 {[%clk 0:00:24]} 32. Rh4 {[%clk 0:01:00]}  Kg7 {[%clk 0:00:24]} 33. Reh1 {[%clk 0:00:54]}  Rh8 {[%clk 0:00:23]} 34. Bxe4 {[%clk 0:00:54]}  dxe4 {[%clk 0:00:22]} 35. Rxe4 {[%clk 0:00:53]}  Qd6 {[%clk 0:00:18]} 36. Reh4 {[%clk 0:00:51]}  Rxh4 {[%clk 0:00:17]} 37. Rxh4 {[%clk 0:00:51]}  Nf6 {[%clk 0:00:18]} 38. e4 {[%clk 0:00:48]}  Qe7 {[%clk 0:00:13]} 39. e5 {[%clk 0:00:46]}  Nd5 {[%clk 0:00:13]} 40. Qd2 {[%clk 0:00:46]}  Rh8 {[%clk 0:00:12]} 41. Rxh8 {[%clk 0:00:45]}  Kxh8 {[%clk 0:00:13]} 42. Qh6+ {[%clk 0:00:44]}  Kg8 {[%clk 0:00:13]} 43. Ng5 {[%clk 0:00:45]}  Qd7 {[%clk 0:00:07]} 44. Qh7+ {[%clk 0:00:40]}  Kf8 {[%clk 0:00:07]} 45. e6 {[%clk 0:00:40]} 1-0


[Site "https://www.chess.com"]

[Event "Titled Tuesday Blitz February 22 Late 2022"]
[White "Kovanova, Baira"]
[Black "Bryakin, Mikhail"]
[WhiteFideId "4164083"]
[BlackFideId "4165314"]
[WhiteElo "2190"]
[BlackElo "2421"]
[Result "0-1"]
[Round "10"]
[TimeControl "180+1"]
[Date "2022.02.22"]
[WhiteClock "0:00:11"]
[BlackClock "0:00:20"]

1. e4 {[%clk 0:02:57]}  c5 {[%clk 0:02:58]} 2. Nf3 {[%clk 0:02:56]}  Nc6 {[%clk 0:02:56]} 3. Bb5 {[%clk 0:02:56]}  Na5 {[%clk 0:02:52]} 4. O-O {[%clk 0:02:47]}  Nf6 {[%clk 0:02:49]} 5. Re1 {[%clk 0:02:46]}  a6 {[%clk 0:02:46]} 6. Bf1 {[%clk 0:02:45]}  g6 {[%clk 0:02:39]} 7. e5 {[%clk 0:02:24]}  Nd5 {[%clk 0:02:39]} 8. d4 {[%clk 0:02:24]}  c4 {[%clk 0:02:30]} 9. Ng5 {[%clk 0:02:11]}  e6 {[%clk 0:02:10]} 10. Qf3 {[%clk 0:02:04]}  f6 {[%clk 0:02:10]} 11. exf6 {[%clk 0:01:58]}  Nxf6 {[%clk 0:02:09]} 12. Nd2 {[%clk 0:01:27]}  Bg7 {[%clk 0:02:07]} 13. Nxc4 {[%clk 0:01:26]}  Nxc4 {[%clk 0:02:06]} 14. Bxc4 {[%clk 0:01:26]}  O-O {[%clk 0:02:05]} 15. Qh3 {[%clk 0:01:05]}  d5 {[%clk 0:01:55]} 16. Bb3 {[%clk 0:00:57]}  Qd6 {[%clk 0:01:52]} 17. Qg3 {[%clk 0:00:50]}  Qb6 {[%clk 0:01:43]} 18. c3 {[%clk 0:00:48]}  Bd7 {[%clk 0:01:42]} 19. Qd3 {[%clk 0:00:37]}  Rae8 {[%clk 0:01:41]} 20. Bf4 {[%clk 0:00:37]}  Ng4 {[%clk 0:01:40]} 21. Bg3 {[%clk 0:00:28]}  Bb5 {[%clk 0:01:33]} 22. Qd2 {[%clk 0:00:27]}  h6 {[%clk 0:01:22]} 23. Nf3 {[%clk 0:00:27]}  Nf6 {[%clk 0:01:23]} 24. Ne5 {[%clk 0:00:26]}  Ne4 {[%clk 0:01:23]} 25. Rxe4 {[%clk 0:00:24]}  dxe4 {[%clk 0:01:23]} 26. Nxg6 {[%clk 0:00:24]}  Rf5 {[%clk 0:01:18]} 27. Nf4 {[%clk 0:00:23]}  Kh7 {[%clk 0:01:09]} 28. Re1 {[%clk 0:00:23]}  e5 {[%clk 0:01:07]} 29. Nd5 {[%clk 0:00:23]}  Qg6 {[%clk 0:01:02]} 30. dxe5 {[%clk 0:00:18]}  Bxe5 {[%clk 0:01:00]} 31. Bc2 {[%clk 0:00:18]}  Bxg3 {[%clk 0:00:57]} 32. hxg3 {[%clk 0:00:18]}  Bd3 {[%clk 0:00:48]} 33. Nf4 {[%clk 0:00:18]}  Qc6 {[%clk 0:00:24]} 34. Bxd3 {[%clk 0:00:14]}  exd3 {[%clk 0:00:23]} 35. Rxe8 {[%clk 0:00:14]}  Qxe8 {[%clk 0:00:23]} 36. Qxd3 {[%clk 0:00:15]}  Qe1+ {[%clk 0:00:23]} 37. Kh2 {[%clk 0:00:15]}  Qe5 {[%clk 0:00:23]} 38. Qd7+ {[%clk 0:00:12]}  Kg8 {[%clk 0:00:21]} 39. Qc7 {[%clk 0:00:11]}  Qxc7 {[%clk 0:00:20]} 0-1


[Site "https://www.chess.com"]

[Event "Titled Tuesday Blitz February 22 Late 2022"]
[White "Loay, Sameer"]
[Black "Zakhartsov, Vladimir"]
[WhiteFideId "8104239"]
[BlackFideId "4145097"]
[WhiteElo "2040"]
[BlackElo "2432"]
[Result "0-1"]
[Round "10"]
[TimeControl "180+1"]
[Date "2022.02.22"]
[WhiteClock "0:00:11"]
[BlackClock "0:00:09"]

1. Nf3 {[%clk 0:03:00]}  d5 {[%clk 0:02:53]} 2. g3 {[%clk 0:03:00]}  Bf5 {[%clk 0:02:47]} 3. Bg2 {[%clk 0:03:00]}  c6 {[%clk 0:02:47]} 4. O-O {[%clk 0:03:00]}  Nf6 {[%clk 0:02:48]} 5. d3 {[%clk 0:03:00]}  e6 {[%clk 0:02:48]} 6. Nbd2 {[%clk 0:03:01]}  h6 {[%clk 0:02:48]} 7. b3 {[%clk 0:03:01]}  a5 {[%clk 0:02:47]} 8. a4 {[%clk 0:02:59]}  Nbd7 {[%clk 0:02:47]} 9. Bb2 {[%clk 0:02:59]}  Be7 {[%clk 0:02:46]} 10. e4 {[%clk 0:03:00]}  Bh7 {[%clk 0:02:41]} 11. Qe2 {[%clk 0:03:00]}  O-O {[%clk 0:02:41]} 12. Ne5 {[%clk 0:02:59]}  Nxe5 {[%clk 0:02:41]} 13. Bxe5 {[%clk 0:03:00]}  Nd7 {[%clk 0:02:41]} 14. Bb2 {[%clk 0:03:00]}  Bf6 {[%clk 0:02:42]} 15. e5 {[%clk 0:03:01]}  Be7 {[%clk 0:02:42]} 16. f4 {[%clk 0:03:01]}  b5 {[%clk 0:02:40]} 17. g4 {[%clk 0:02:55]}  Nc5 {[%clk 0:02:35]} 18. axb5 {[%clk 0:02:52]}  cxb5 {[%clk 0:02:34]} 19. Kh1 {[%clk 0:02:51]}  a4 {[%clk 0:02:33]} 20. bxa4 {[%clk 0:02:50]}  bxa4 {[%clk 0:02:25]} 21. Ba3 {[%clk 0:02:47]}  Nd7 {[%clk 0:02:23]} 22. f5 {[%clk 0:02:45]}  Bxa3 {[%clk 0:02:22]} 23. Rxa3 {[%clk 0:02:45]}  exf5 {[%clk 0:02:23]} 24. gxf5 {[%clk 0:02:36]}  Qe7 {[%clk 0:02:22]} 25. Ra2 {[%clk 0:02:21]}  Nxe5 {[%clk 0:02:18]} 26. Bxd5 {[%clk 0:02:19]}  Ra5 {[%clk 0:02:12]} 27. c4 {[%clk 0:02:15]}  Nc6 {[%clk 0:01:55]} 28. Qg2 {[%clk 0:02:05]}  Bxf5 {[%clk 0:01:05]} 29. Rxf5 {[%clk 0:01:58]}  Nb4 {[%clk 0:01:04]} 30. Ra1 {[%clk 0:01:48]}  Nxd5 {[%clk 0:01:00]} 31. Rxd5 {[%clk 0:01:47]}  Rxd5 {[%clk 0:00:59]} 32. cxd5 {[%clk 0:01:46]}  a3 {[%clk 0:00:58]} 33. Nc4 {[%clk 0:01:45]}  Qb4 {[%clk 0:00:45]} 34. h3 {[%clk 0:01:33]}  Ra8 {[%clk 0:00:42]} 35. d6 {[%clk 0:01:33]}  Ra7 {[%clk 0:00:42]} 36. Qf2 {[%clk 0:00:58]}  Ra8 {[%clk 0:00:17]} 37. d7 {[%clk 0:00:39]}  Qe7 {[%clk 0:00:15]} 38. Qd4 {[%clk 0:00:33]}  Rd8 {[%clk 0:00:14]} 39. Rxa3 {[%clk 0:00:15]}  Rxd7 {[%clk 0:00:14]} 40. Ra8+ {[%clk 0:00:15]}  Kh7 {[%clk 0:00:14]} 41. Qe4+ {[%clk 0:00:15]}  Qxe4+ {[%clk 0:00:15]} 42. dxe4 {[%clk 0:00:16]}  Rd4 {[%clk 0:00:15]} 43. Ne3 {[%clk 0:00:16]}  Rxe4 {[%clk 0:00:15]} 44. Ng2 {[%clk 0:00:17]}  f5 {[%clk 0:00:14]} 45. Rf8 {[%clk 0:00:16]}  g6 {[%clk 0:00:13]} 46. Kh2 {[%clk 0:00:16]}  Kg7 {[%clk 0:00:13]} 47. Ra8 {[%clk 0:00:16]}  g5 {[%clk 0:00:14]} 48. Kg3 {[%clk 0:00:16]}  Kg6 {[%clk 0:00:13]} 49. Ra6+ {[%clk 0:00:13]}  Kh5 {[%clk 0:00:13]} 50. Kf3 {[%clk 0:00:13]}  Rb4 {[%clk 0:00:12]} 51. Ne3 {[%clk 0:00:14]}  Rb3 {[%clk 0:00:13]} 52. Kf2 {[%clk 0:00:14]}  f4 {[%clk 0:00:12]} 53. Ng4 {[%clk 0:00:14]}  Rxh3 {[%clk 0:00:11]} 54. Nf6+ {[%clk 0:00:15]}  Kh4 {[%clk 0:00:11]} 55. Ne4 {[%clk 0:00:16]}  h5 {[%clk 0:00:11]} 56. Ra5 {[%clk 0:00:15]}  g4 {[%clk 0:00:07]} 57. Nf6 {[%clk 0:00:15]}  Rh2+ {[%clk 0:00:08]} 58. Kg1 {[%clk 0:00:15]}  Rb2 {[%clk 0:00:08]} 59. Rxh5+ {[%clk 0:00:15]}  Kg3 {[%clk 0:00:07]} 60. Ne4+ {[%clk 0:00:15]}  Kf3 {[%clk 0:00:08]} 61. Ng5+ {[%clk 0:00:16]}  Ke3 {[%clk 0:00:08]} 62. Rh6 {[%clk 0:00:14]}  f3 {[%clk 0:00:08]} 63. Re6+ {[%clk 0:00:13]}  Kf4 {[%clk 0:00:08]} 64. Nf7 {[%clk 0:00:12]}  Kg3 {[%clk 0:00:08]} 65. Kf1 {[%clk 0:00:11]}  Rb1+ {[%clk 0:00:08]} 66. Re1 {[%clk 0:00:10]}  Rxe1+ {[%clk 0:00:08]} 67. Kxe1 {[%clk 0:00:11]}  Kg2 {[%clk 0:00:09]} 0-1


[Site "https://www.chess.com"]

[Event "Titled Tuesday Blitz February 22 Late 2022"]
[White "Lock, Gavin R"]
[Black "Levine, Joseph"]
[WhiteFideId "408646"]
[BlackFideId "30940346"]
[WhiteElo "2104"]
[BlackElo "1802"]
[Result "0-1"]
[Round "10"]
[TimeControl "180+1"]
[Date "2022.02.23"]
[WhiteClock "0:00:03"]
[BlackClock "0:00:06"]

1. d4 {[%clk 0:03:00]}  d5 {[%clk 0:02:59]} 2. Nf3 {[%clk 0:02:59]}  Nf6 {[%clk 0:03:00]} 3. Bf4 {[%clk 0:03:00]}  Bf5 {[%clk 0:03:00]} 4. e3 {[%clk 0:02:58]}  e6 {[%clk 0:03:00]} 5. c4 {[%clk 0:02:59]}  Bxb1 {[%clk 0:02:59]} 6. Qxb1 {[%clk 0:02:52]}  Bb4+ {[%clk 0:02:58]} 7. Kd1 {[%clk 0:02:50]}  Nbd7 {[%clk 0:02:57]} 8. a3 {[%clk 0:02:30]}  Bd6 {[%clk 0:02:52]} 9. Bxd6 {[%clk 0:02:28]}  cxd6 {[%clk 0:02:53]} 10. cxd5 {[%clk 0:02:25]}  Nxd5 {[%clk 0:02:45]} 11. Bd3 {[%clk 0:02:20]}  N5f6 {[%clk 0:02:42]} 12. Ke2 {[%clk 0:02:19]}  O-O {[%clk 0:02:38]} 13. Rc1 {[%clk 0:02:19]}  e5 {[%clk 0:02:38]} 14. Kf1 {[%clk 0:02:12]}  Rc8 {[%clk 0:02:34]} 15. Be2 {[%clk 0:01:10]}  Qb6 {[%clk 0:02:23]} 16. b4 {[%clk 0:01:01]}  h6 {[%clk 0:02:00]} 17. Qb2 {[%clk 0:00:45]}  a5 {[%clk 0:01:28]} 18. b5 {[%clk 0:00:34]}  e4 {[%clk 0:00:38]} 19. Nd2 {[%clk 0:00:34]}  d5 {[%clk 0:00:38]} 20. a4 {[%clk 0:00:31]}  Rxc1+ {[%clk 0:00:34]} 21. Rxc1 {[%clk 0:00:31]}  Ne8 {[%clk 0:00:35]} 22. Rc3 {[%clk 0:00:17]}  f5 {[%clk 0:00:32]} 23. g3 {[%clk 0:00:12]}  g5 {[%clk 0:00:29]} 24. Qb3 {[%clk 0:00:13]}  Ndf6 {[%clk 0:00:24]} 25. Rc5 {[%clk 0:00:11]}  Nd6 {[%clk 0:00:19]} 26. Qc3 {[%clk 0:00:09]}  f4 {[%clk 0:00:18]} 27. exf4 {[%clk 0:00:09]}  gxf4 {[%clk 0:00:19]} 28. gxf4 {[%clk 0:00:10]}  Nf5 {[%clk 0:00:19]} 29. Ke1 {[%clk 0:00:07]}  Qd6 {[%clk 0:00:19]} 30. Nf1 {[%clk 0:00:05]}  Qxf4 {[%clk 0:00:19]} 31. Rc8 {[%clk 0:00:05]}  Qd6 {[%clk 0:00:15]} 32. Rxf8+ {[%clk 0:00:04]}  Qxf8 {[%clk 0:00:14]} 33. h3 {[%clk 0:00:05]}  Qd8 {[%clk 0:00:10]} 34. Ne3 {[%clk 0:00:05]}  Nxe3 {[%clk 0:00:09]} 35. fxe3 {[%clk 0:00:05]}  Qd6 {[%clk 0:00:08]} 36. Qc5 {[%clk 0:00:04]}  Ne8 {[%clk 0:00:06]} 37. Kd2 {[%clk 0:00:04]}  Kf8 {[%clk 0:00:05]} 38. Bg4 {[%clk 0:00:02]}  b6 {[%clk 0:00:05]} 39. Qc8 {[%clk 0:00:02]}  Ke7 {[%clk 0:00:04]} 40. Qb7+ {[%clk 0:00:01]}  Nc7 {[%clk 0:00:04]} 41. Qc6 {[%clk 0:00:01]}  Qxc6 {[%clk 0:00:04]} 42. bxc6 {[%clk 0:00:02]}  Kd6 {[%clk 0:00:04]} 43. Bd7 {[%clk 0:00:02]}  Na6 {[%clk 0:00:04]} 44. Kc3 {[%clk 0:00:02]}  Nb8 {[%clk 0:00:05]} 45. Be8 {[%clk 0:00:02]}  Nxc6 {[%clk 0:00:05]} 46. Bf7 {[%clk 0:00:01]}  Ne7 {[%clk 0:00:05]} 47. Be8 {[%clk 0:00:01]}  Ke6 {[%clk 0:00:05]} 48. Bb5 {[%clk 0:00:01]}  Kf5 {[%clk 0:00:05]} 49. Be2 {[%clk 0:00:02]}  Kg5 {[%clk 0:00:05]} 50. Kd2 {[%clk 0:00:02]}  Kh4 {[%clk 0:00:06]} 51. Ke1 {[%clk 0:00:03]}  Kxh3 {[%clk 0:00:06]} 52. Kf2 {[%clk 0:00:03]}  Kh4 {[%clk 0:00:06]} 0-1


[Site "https://www.chess.com"]

[Event "Titled Tuesday Blitz February 22 Late 2022"]
[White "Lopez Del Alamo, Antonio"]
[Black "Golubev, Mikhail"]
[WhiteFideId "2227339"]
[BlackFideId "14100983"]
[WhiteElo "2082"]
[BlackElo "2374"]
[Result "1-0"]
[Round "10"]
[TimeControl "180+1"]
[Date "2022.02.23"]
[WhiteClock "0:01:20"]
[BlackClock "0:00:06"]

1. e4 {[%clk 0:03:00]}  c5 {[%clk 0:02:59]} 2. Nf3 {[%clk 0:02:58]}  d6 {[%clk 0:02:59]} 3. d4 {[%clk 0:02:56]}  Nf6 {[%clk 0:02:59]} 4. Nc3 {[%clk 0:02:55]}  cxd4 {[%clk 0:02:59]} 5. Nxd4 {[%clk 0:02:55]}  g6 {[%clk 0:03:00]} 6. Be2 {[%clk 0:02:54]}  Bg7 {[%clk 0:03:00]} 7. O-O {[%clk 0:02:54]}  O-O {[%clk 0:02:59]} 8. Bg5 {[%clk 0:02:53]}  Nc6 {[%clk 0:02:55]} 9. Nb3 {[%clk 0:02:53]}  Be6 {[%clk 0:02:49]} 10. Kh1 {[%clk 0:02:48]}  Na5 {[%clk 0:02:40]} 11. Nxa5 {[%clk 0:02:46]}  Qxa5 {[%clk 0:02:39]} 12. f4 {[%clk 0:02:46]}  Rac8 {[%clk 0:02:30]} 13. Bd3 {[%clk 0:02:33]}  Bc4 {[%clk 0:02:19]} 14. Qe2 {[%clk 0:02:32]}  Bxd3 {[%clk 0:01:27]} 15. cxd3 {[%clk 0:02:28]}  Rfe8 {[%clk 0:01:27]} 16. f5 {[%clk 0:02:21]}  Qe5 {[%clk 0:01:10]} 17. Rad1 {[%clk 0:02:06]}  gxf5 {[%clk 0:00:32]} 18. d4 {[%clk 0:01:59]}  Qa5 {[%clk 0:00:31]} 19. Rxf5 {[%clk 0:01:48]}  Qa6 {[%clk 0:00:31]} 20. Qf3 {[%clk 0:01:40]}  Rf8 {[%clk 0:00:28]} 21. e5 {[%clk 0:01:33]}  dxe5 {[%clk 0:00:13]} 22. dxe5 {[%clk 0:01:34]}  Rxc3 {[%clk 0:00:09]} 23. bxc3 {[%clk 0:01:26]}  Qa4 {[%clk 0:00:09]} 24. exf6 {[%clk 0:01:21]}  exf6 {[%clk 0:00:06]} 25. Bxf6 {[%clk 0:01:20]} 1-0


[Site "https://www.chess.com"]